[Event "Early-Titled-Tuesday-Blitz-May-28-2024"]
[Site "Chess.com"]
[Date "2024.05.28"]
[Round "6"]
[White "JanMur7"]
[Black "InitiatingASC"]
[Result "1-0"]
[WhiteElo "2280"]
[BlackElo "2417"]
[TimeControl "180+1"]
[EndTime "9:08:25 PDT"]
[Termination "JanMur7 won by resignation"]

1. c4 {[%clk 0:03:00.9]} 1... e6 {[%clk 0:02:56.3]} 2. Nc3 {[%clk 0:03:01.1]}
2... d5 {[%clk 0:02:56.3]} 3. d4 {[%clk 0:03:01.1]} 3... c5 {[%clk 0:02:56.1]}
4. Nf3 {[%clk 0:02:57.7]} 4... Nc6 {[%clk 0:02:54.8]} 5. cxd5 {[%clk 0:02:56.7]}
5... exd5 {[%clk 0:02:54.3]} 6. e3 {[%clk 0:02:52.5]} 6... Nf6 {[%clk 0:02:53]}
7. Be2 {[%clk 0:02:50.2]} 7... Be7 {[%clk 0:02:51.5]} 8. O-O {[%clk 0:02:49]}
8... O-O {[%clk 0:02:49.6]} 9. b3 {[%clk 0:02:48.3]} 9... a6 {[%clk 0:02:42.3]}
10. Ba3 {[%clk 0:02:39.4]} 10... Qa5 {[%clk 0:02:37.7]} 11. Bb2 {[%clk 0:02:18]}
11... Bg4 {[%clk 0:02:24.5]} 12. h3 {[%clk 0:02:10.7]} 12... Bxf3 {[%clk
0:02:13.3]} 13. Bxf3 {[%clk 0:02:11.6]} 13... cxd4 {[%clk 0:02:13.9]} 14. exd4
{[%clk 0:02:10.4]} 14... Bb4 {[%clk 0:02:08.4]} 15. Qd3 {[%clk 0:02:00.3]} 15...
Rfe8 {[%clk 0:02:03.3]} 16. a3 {[%clk 0:01:56.2]} 16... Bxc3 {[%clk 0:01:56.4]}
17. Bxc3 {[%clk 0:01:51.5]} 17... Qb6 {[%clk 0:01:55.1]} 18. Bb2 {[%clk
0:01:42.8]} 18... Ne4 {[%clk 0:01:53.2]} 19. Rfe1 {[%clk 0:01:39.8]} 19... Rad8
{[%clk 0:01:46.4]} 20. b4 {[%clk 0:01:31.8]} 20... f5 {[%clk 0:01:46]} 21. Rac1
{[%clk 0:01:28.8]} 21... Na5 {[%clk 0:01:37.9]} 22. bxa5 {[%clk 0:00:28.8]}
22... Qxb2 {[%clk 0:01:36.5]} 23. Bxe4 {[%clk 0:00:27.7]} 23... fxe4 {[%clk
0:01:32.1]} 24. Qc3 {[%clk 0:00:25.6]} 24... Qxc3 {[%clk 0:01:16.5]} 25. Rxc3
{[%clk 0:00:26.5]} 25... Re7 {[%clk 0:01:14.6]} 26. Rec1 {[%clk 0:00:21.2]}
26... Kf7 {[%clk 0:01:12.9]} 27. Rc7 {[%clk 0:00:17.3]} 27... Rdd7 {[%clk
0:01:12.1]} 28. Rc8 {[%clk 0:00:16.7]} 28... Ke6 {[%clk 0:01:11]} 29. Rh8 {[%clk
0:00:16.3]} 29... h6 {[%clk 0:01:10.9]} 30. Rhc8 {[%clk 0:00:16.7]} 30... Kd6
{[%clk 0:01:11.1]} 31. Kf1 {[%clk 0:00:08.3]} 31... Rc7 {[%clk 0:01:11.3]} 32.
R1xc7 {[%clk 0:00:06.9]} 32... Rxc7 {[%clk 0:01:11.4]} 33. Rd8+ {[%clk
0:00:07.5]} 33... Ke6 {[%clk 0:01:04.4]} 34. Rb8 {[%clk 0:00:07.9]} 34... Kd7
{[%clk 0:01:02.1]} 35. Rg8 {[%clk 0:00:07.7]} 35... Kc6 {[%clk 0:01:00.8]} 36.
Rd8 {[%clk 0:00:06.9]} 36... Rd7 {[%clk 0:01:00.7]} 37. Rc8+ {[%clk 0:00:07.1]}
37... Kb5 {[%clk 0:00:57.7]} 38. Rc5+ {[%clk 0:00:06.6]} 38... Ka4 {[%clk
0:00:58]} 39. Ke2 {[%clk 0:00:05.7]} 39... Kxa3 {[%clk 0:00:57.2]} 40. Ke3
{[%clk 0:00:06.2]} 40... Kb4 {[%clk 0:00:56.1]} 41. f3 {[%clk 0:00:04.7]} 41...
exf3 {[%clk 0:00:54.4]} 42. gxf3 {[%clk 0:00:04.2]} 42... Re7+ {[%clk
0:00:52.1]} 43. Kf4 {[%clk 0:00:04.4]} 43... Rf7+ {[%clk 0:00:51.2]} 44. Kg4
{[%clk 0:00:04.7]} 44... Rd7 {[%clk 0:00:49]} 45. f4 {[%clk 0:00:05]} 45... Rd6
{[%clk 0:00:42]} 46. Kf5 {[%clk 0:00:04.3]} 46... b6 {[%clk 0:00:42.5]} 47. axb6
{[%clk 0:00:03.6]} 47... Rxb6 {[%clk 0:00:41.7]} 48. Rxd5 {[%clk 0:00:04]} 48...
Rf6+ {[%clk 0:00:39.1]} 49. Ke5 {[%clk 0:00:03.8]} 49... a5 {[%clk 0:00:39.3]}
50. Rd8 {[%clk 0:00:03.9]} 50... a4 {[%clk 0:00:38.7]} 51. Rb8+ {[%clk
0:00:04.1]} 51... Kc3 {[%clk 0:00:38.6]} 52. Ra8 {[%clk 0:00:04.1]} 52... Kb3
{[%clk 0:00:38.4]} 53. d5 {[%clk 0:00:04.6]} 53... a3 {[%clk 0:00:36.9]} 54. d6
{[%clk 0:00:04.7]} 54... Rf7 {[%clk 0:00:32]} 55. Ke6 {[%clk 0:00:02.8]} 55...
Rxf4 {[%clk 0:00:32]} 56. d7 {[%clk 0:00:03.1]} 56... Re4+ {[%clk 0:00:31.6]}
57. Kd5 {[%clk 0:00:02.4]} 57... Re3 {[%clk 0:00:26.3]} 58. d8=Q {[%clk
0:00:02.3]} 58... Rd3+ {[%clk 0:00:26.1]} 59. Ke6 {[%clk 0:00:02.8]} 59... Rxd8
{[%clk 0:00:27]} 60. Rxd8 {[%clk 0:00:03.1]} 60... a2 {[%clk 0:00:23.2]} 61. Ra8
{[%clk 0:00:03.1]} 61... g5 {[%clk 0:00:05.8]} 62. Kf5 {[%clk 0:00:02.8]} 62...
a1=Q {[%clk 0:00:04.4]} 63. Rxa1 {[%clk 0:00:02.1]} 1-0

[Event "Early-Titled-Tuesday-Blitz-May-28-2024"]
[Site "Chess.com"]
[Date "2024.05.28"]
[Round "6"]
[White "SipahiPower"]
[Black "crazy_but_lazy"]
[Result "1/2-1/2"]
[WhiteElo "2521"]
[BlackElo "2662"]
[TimeControl "180+1"]
[EndTime "9:08:26 PDT"]
[Termination "Game drawn by stalemate"]

1. d4 {[%clk 0:02:55.3]} 1... Nf6 {[%clk 0:02:59]} 2. c4 {[%clk 0:02:55.8]} 2...
e6 {[%clk 0:02:59.5]} 3. Nc3 {[%clk 0:02:56.5]} 3... Bb4 {[%clk 0:02:59.9]} 4.
Qc2 {[%clk 0:02:57.1]} 4... c5 {[%clk 0:02:53.3]} 5. dxc5 {[%clk 0:02:58]} 5...
Bxc5 {[%clk 0:02:52.3]} 6. Bf4 {[%clk 0:02:57.1]} 6... O-O {[%clk 0:02:41.9]} 7.
Rd1 {[%clk 0:02:57.3]} 7... Nc6 {[%clk 0:02:40.4]} 8. Nf3 {[%clk 0:02:57.1]}
8... h6 {[%clk 0:02:28.5]} 9. e3 {[%clk 0:02:56.5]} 9... Nh5 {[%clk 0:02:26.9]}
10. Bd6 {[%clk 0:02:52.2]} 10... Bxd6 {[%clk 0:02:27]} 11. Rxd6 {[%clk 0:02:53]}
11... Nf6 {[%clk 0:02:25.4]} 12. Be2 {[%clk 0:02:45.3]} 12... a6 {[%clk
0:02:25.7]} 13. O-O {[%clk 0:02:44.9]} 13... Qc7 {[%clk 0:02:26.1]} 14. Rd2
{[%clk 0:02:29.9]} 14... b6 {[%clk 0:02:23.1]} 15. Rfd1 {[%clk 0:02:29.7]} 15...
Bb7 {[%clk 0:02:22.8]} 16. Ne4 {[%clk 0:02:16.2]} 16... Nxe4 {[%clk 0:02:10.7]}
17. Rxd7 {[%clk 0:02:00.3]} 17... Qc8 {[%clk 0:02:11.1]} 18. Qxe4 {[%clk
0:01:57.6]} 18... Na5 {[%clk 0:01:55.1]} 19. Qd4 {[%clk 0:01:55.4]} 19... Rb8
{[%clk 0:01:41.4]} 20. b3 {[%clk 0:01:53.1]} 20... Bc6 {[%clk 0:01:34.7]} 21.
Re7 {[%clk 0:01:27]} 21... b5 {[%clk 0:00:57]} 22. cxb5 {[%clk 0:01:18.9]} 22...
Bxb5 {[%clk 0:00:52.4]} 23. Bxb5 {[%clk 0:01:11.4]} 23... axb5 {[%clk
0:00:53.3]} 24. Ne5 {[%clk 0:01:07.4]} 24... Qc2 {[%clk 0:00:52.1]} 25. Qd2
{[%clk 0:00:52.2]} 25... Qc5 {[%clk 0:00:44.4]} 26. Rd7 {[%clk 0:00:27.3]} 26...
Qxe5 {[%clk 0:00:43.2]} 27. Qxa5 {[%clk 0:00:26.2]} 27... Ra8 {[%clk 0:00:35.8]}
28. Qd2 {[%clk 0:00:25.2]} 28... Qc5 {[%clk 0:00:26.9]} 29. Rc1 {[%clk
0:00:21.8]} 29... Qa3 {[%clk 0:00:26.4]} 30. Rc2 {[%clk 0:00:21.1]} 30... Qa6
{[%clk 0:00:22.3]} 31. h3 {[%clk 0:00:20.5]} 31... Rfb8 {[%clk 0:00:19.9]} 32.
Rcc7 {[%clk 0:00:19.1]} 32... Rf8 {[%clk 0:00:19.2]} 33. Rc2 {[%clk 0:00:19]}
33... Rfb8 {[%clk 0:00:16.9]} 34. Qe2 {[%clk 0:00:19.6]} 34... Qa5 {[%clk
0:00:15.8]} 35. Rcc7 {[%clk 0:00:19.2]} 35... Rf8 {[%clk 0:00:14.5]} 36. Qf3
{[%clk 0:00:19.8]} 36... Qe1+ {[%clk 0:00:15]} 37. Kh2 {[%clk 0:00:20]} 37...
Qa1 {[%clk 0:00:08]} 38. Rxf7 {[%clk 0:00:19.8]} 38... Qe5+ {[%clk 0:00:07.4]}
39. g3 {[%clk 0:00:17.1]} 39... Rxf7 {[%clk 0:00:04.2]} 40. Qxf7+ {[%clk
0:00:18]} 40... Kh8 {[%clk 0:00:04.5]} 41. Ra7 {[%clk 0:00:09.3]} 41... Rc8
{[%clk 0:00:04.2]} 42. Re7 {[%clk 0:00:07.5]} 42... Rc2 {[%clk 0:00:02.6]} 43.
Re8+ {[%clk 0:00:06.6]} 43... Kh7 {[%clk 0:00:03.1]} 44. Qf3 {[%clk 0:00:04.7]}
44... Qf5 {[%clk 0:00:02.9]} 45. Rf8 {[%clk 0:00:03.7]} 45... Qxf3 {[%clk
0:00:02.7]} 46. Rxf3 {[%clk 0:00:04.6]} 46... Rxa2 {[%clk 0:00:03]} 47. e4
{[%clk 0:00:05.3]} 47... Rb2 {[%clk 0:00:03]} 48. Kg2 {[%clk 0:00:05.9]} 48...
Kg6 {[%clk 0:00:03.2]} 49. Re3 {[%clk 0:00:06.6]} 49... Kf6 {[%clk 0:00:03.5]}
50. e5+ {[%clk 0:00:06.8]} 50... Kf5 {[%clk 0:00:03.4]} 51. Kf3 {[%clk
0:00:07.7]} 51... h5 {[%clk 0:00:03]} 52. g4+ {[%clk 0:00:08.6]} 52... Kg5
{[%clk 0:00:02.7]} 53. Kg3 {[%clk 0:00:08.8]} 53... h4+ {[%clk 0:00:02.9]} 54.
Kf3 {[%clk 0:00:09.1]} 54... g6 {[%clk 0:00:02.7]} 55. Ke4 {[%clk 0:00:09.6]}
55... Rxf2 {[%clk 0:00:02.1]} 56. Rf3 {[%clk 0:00:08.9]} 56... Re2+ {[%clk
0:00:01]} 57. Re3 {[%clk 0:00:09.4]} 57... Rb2 {[%clk 0:00:01.4]} 58. Kd4 {[%clk
0:00:09.9]} 58... Rg2 {[%clk 0:00:01.4]} 59. Ke4 {[%clk 0:00:08.3]} 59... Rg3
{[%clk 0:00:01.2]} 60. Rxg3 {[%clk 0:00:08.5]} 60... hxg3 {[%clk 0:00:01.7]} 61.
Kf3 {[%clk 0:00:09.4]} 61... Kh4 {[%clk 0:00:02.3]} 62. Kg2 {[%clk 0:00:09.4]}
62... b4 {[%clk 0:00:02.9]} 63. g5 {[%clk 0:00:09.6]} 63... Kxg5 {[%clk
0:00:02.8]} 64. Kxg3 {[%clk 0:00:10.5]} 64... Kf5 {[%clk 0:00:03.5]} 65. Kh4
{[%clk 0:00:11.1]} 65... Kf4 {[%clk 0:00:02.7]} 1/2-1/2

[Event "Early-Titled-Tuesday-Blitz-May-28-2024"]
[Site "Chess.com"]
[Date "2024.05.28"]
[Round "6"]
[White "scarabee43"]
[Black "HansOnTwitch"]
[Result "1/2-1/2"]
[WhiteElo "2831"]
[BlackElo "3120"]
[TimeControl "180+1"]
[EndTime "9:08:27 PDT"]
[Termination "Game drawn by stalemate"]

1. Nf3 {[%clk 0:03:00.9]} 1... d5 {[%clk 0:02:59.1]} 2. e3 {[%clk 0:03:01.1]}
2... c5 {[%clk 0:02:58.2]} 3. b3 {[%clk 0:03:00.1]} 3... f6 {[%clk 0:02:57.3]}
4. d4 {[%clk 0:02:59.3]} 4... cxd4 {[%clk 0:02:56.9]} 5. exd4 {[%clk 0:02:59.9]}
5... Nc6 {[%clk 0:02:57.5]} 6. Bb2 {[%clk 0:03:00.5]} 6... Bg4 {[%clk
0:02:57.6]} 7. Nbd2 {[%clk 0:02:58.5]} 7... e6 {[%clk 0:02:57.7]} 8. Bd3 {[%clk
0:02:56.6]} 8... Bd6 {[%clk 0:02:56.5]} 9. h3 {[%clk 0:02:56.3]} 9... Bh5 {[%clk
0:02:56]} 10. O-O {[%clk 0:02:54.9]} 10... Nge7 {[%clk 0:02:55.6]} 11. Re1
{[%clk 0:02:54.6]} 11... Qd7 {[%clk 0:02:55.8]} 12. Qe2 {[%clk 0:02:53]} 12...
Bf7 {[%clk 0:02:53.7]} 13. a3 {[%clk 0:02:49.2]} 13... O-O {[%clk 0:02:52]} 14.
c4 {[%clk 0:02:46.6]} 14... Ng6 {[%clk 0:02:52.4]} 15. g3 {[%clk 0:02:35.9]}
15... Rfe8 {[%clk 0:02:52.8]} 16. Qf1 {[%clk 0:02:17.1]} 16... Rad8 {[%clk
0:02:52.1]} 17. Rad1 {[%clk 0:02:11.8]} 17... a6 {[%clk 0:02:52.3]} 18. Bb1
{[%clk 0:02:06.8]} 18... Qe7 {[%clk 0:02:50.1]} 19. b4 {[%clk 0:02:05.3]} 19...
Qd7 {[%clk 0:02:48.8]} 20. Ba2 {[%clk 0:02:04.7]} 20... Nge7 {[%clk 0:02:46.3]}
21. c5 {[%clk 0:01:58.2]} 21... Bc7 {[%clk 0:02:46.4]} 22. Bc3 {[%clk
0:01:58.1]} 22... Ng6 {[%clk 0:02:44.2]} 23. a4 {[%clk 0:01:53.5]} 23... Na7
{[%clk 0:02:41.1]} 24. Bb3 {[%clk 0:01:52.8]} 24... e5 {[%clk 0:02:40.9]} 25.
dxe5 {[%clk 0:01:46.7]} 25... Nxe5 {[%clk 0:02:41.1]} 26. Nd4 {[%clk 0:01:43.4]}
26... Nac6 {[%clk 0:02:35]} 27. N2f3 {[%clk 0:01:33.6]} 27... Nxf3+ {[%clk
0:02:30.6]} 28. Nxf3 {[%clk 0:01:33.4]} 28... Qf5 {[%clk 0:02:27.4]} 29. Nd4
{[%clk 0:01:31.9]} 29... Nxd4 {[%clk 0:02:24.3]} 30. Bxd4 {[%clk 0:01:30.3]}
30... Be5 {[%clk 0:02:24.2]} 31. Qd3 {[%clk 0:01:26.6]} 31... Qxh3 {[%clk
0:02:20.5]} 32. Re3 {[%clk 0:01:05.9]} 32... Bxd4 {[%clk 0:02:16.1]} 33. Qxd4
{[%clk 0:01:05.5]} 33... Rxe3 {[%clk 0:02:16.3]} 34. Qxe3 {[%clk 0:01:05]} 34...
Re8 {[%clk 0:02:16.1]} 35. Qf3 {[%clk 0:01:03.7]} 35... Re5 {[%clk 0:02:15.4]}
36. b5 {[%clk 0:00:55.8]} 36... axb5 {[%clk 0:02:14.8]} 37. axb5 {[%clk
0:00:56.3]} 37... Bh5 {[%clk 0:02:12.6]} 38. Bxd5+ {[%clk 0:00:54.3]} 38... Kf8
{[%clk 0:02:12.7]} 39. g4 {[%clk 0:00:31.5]} 39... Qxg4+ {[%clk 0:02:05.9]} 40.
Qxg4 {[%clk 0:00:31.3]} 40... Bxg4 {[%clk 0:02:06.8]} 41. Rd4 {[%clk 0:00:31.2]}
41... Bc8 {[%clk 0:01:55.4]} 42. b6 {[%clk 0:00:27.7]} 42... Ke7 {[%clk
0:01:48.8]} 43. c6 {[%clk 0:00:26.7]} 43... bxc6 {[%clk 0:01:49.7]} 44. Bxc6
{[%clk 0:00:27.2]} 44... Re1+ {[%clk 0:01:49.9]} 45. Kg2 {[%clk 0:00:27]} 45...
Rb1 {[%clk 0:01:47.3]} 46. b7 {[%clk 0:00:27.3]} 46... Be6 {[%clk 0:01:20.6]}
47. Be4 {[%clk 0:00:19.1]} 47... Rb6 {[%clk 0:01:19.6]} 48. Ra4 {[%clk
0:00:18.4]} 48... Kd7 {[%clk 0:00:52]} 49. Ra8 {[%clk 0:00:17.9]} 49... Kc7
{[%clk 0:00:51.5]} 50. Re8 {[%clk 0:00:18.1]} 50... Bd7 {[%clk 0:00:48.9]} 51.
Re7 {[%clk 0:00:18.6]} 51... Kd6 {[%clk 0:00:33.2]} 52. Rxg7 {[%clk 0:00:18]}
52... Bc6 {[%clk 0:00:31.9]} 53. Bxc6 {[%clk 0:00:10]} 53... Kxc6 {[%clk
0:00:32.8]} 54. Rxh7 {[%clk 0:00:10.6]} 54... Rxb7 {[%clk 0:00:32.5]} 55. Rxb7
{[%clk 0:00:10.9]} 55... Kxb7 {[%clk 0:00:33.4]} 56. Kf3 {[%clk 0:00:11.6]}
56... Kc6 {[%clk 0:00:34]} 57. Kf4 {[%clk 0:00:12.4]} 57... Kd6 {[%clk
0:00:34.5]} 58. Kf5 {[%clk 0:00:13.2]} 58... Ke7 {[%clk 0:00:34]} 59. Kf4 {[%clk
0:00:13.9]} 59... Ke6 {[%clk 0:00:33.7]} 60. Ke4 {[%clk 0:00:14.6]} 60... f5+
{[%clk 0:00:24.8]} 61. Kd4 {[%clk 0:00:14.5]} 61... Kf6 {[%clk 0:00:25.7]} 62.
f4 {[%clk 0:00:14.4]} 62... Ke6 {[%clk 0:00:23.1]} 63. Kc5 {[%clk 0:00:14.9]}
63... Kf6 {[%clk 0:00:22.9]} 64. Kd5 {[%clk 0:00:15.5]} 64... Kf7 {[%clk
0:00:19.4]} 65. Ke5 {[%clk 0:00:15.8]} 65... Ke7 {[%clk 0:00:20]} 66. Kxf5
{[%clk 0:00:16.4]} 66... Kf7 {[%clk 0:00:20.4]} 67. Ke5 {[%clk 0:00:17]} 67...
Ke7 {[%clk 0:00:20.9]} 68. f5 {[%clk 0:00:17.7]} 68... Kf7 {[%clk 0:00:21]} 69.
f6 {[%clk 0:00:18.5]} 69... Kf8 {[%clk 0:00:20.9]} 70. Ke6 {[%clk 0:00:19.3]}
70... Ke8 {[%clk 0:00:21.4]} 71. f7+ {[%clk 0:00:20]} 71... Kf8 {[%clk
0:00:22.2]} 72. Kf6 {[%clk 0:00:20.8]} 1/2-1/2

[Event "Early-Titled-Tuesday-Blitz-May-28-2024"]
[Site "Chess.com"]
[Date "2024.05.28"]
[Round "6"]
[White "ural58"]
[Black "lamomiajunior"]
[Result "0-1"]
[WhiteElo "2436"]
[BlackElo "2718"]
[TimeControl "180+1"]
[EndTime "9:08:29 PDT"]
[Termination "lamomiajunior won by checkmate"]

1. e4 {[%clk 0:03:00.9]} 1... c5 {[%clk 0:02:58.9]} 2. b3 {[%clk 0:03:00.1]}
2... Nc6 {[%clk 0:02:56.4]} 3. Bb2 {[%clk 0:02:59.7]} 3... e5 {[%clk 0:02:57.1]}
4. f4 {[%clk 0:02:59.1]} 4... exf4 {[%clk 0:02:52.9]} 5. Qf3 {[%clk 0:02:57.9]}
5... Nge7 {[%clk 0:02:29.4]} 6. Qxf4 {[%clk 0:02:48]} 6... Ng6 {[%clk
0:02:29.5]} 7. Qe3 {[%clk 0:02:45.5]} 7... d6 {[%clk 0:02:25.4]} 8. Bb5 {[%clk
0:02:44.2]} 8... Be7 {[%clk 0:02:15.6]} 9. Bxg7 {[%clk 0:02:39.9]} 9... Rg8
{[%clk 0:02:16.1]} 10. Bc3 {[%clk 0:02:34.6]} 10... Bg5 {[%clk 0:02:14.2]} 11.
Bxc6+ {[%clk 0:02:31.3]} 11... bxc6 {[%clk 0:02:14.2]} 12. Qf2 {[%clk
0:02:19.7]} 12... Nf4 {[%clk 0:01:59.5]} 13. g3 {[%clk 0:02:15.5]} 13... Ne6
{[%clk 0:01:53.8]} 14. Nf3 {[%clk 0:02:12.6]} 14... Ba6 {[%clk 0:01:51.8]} 15.
Na3 {[%clk 0:02:10.8]} 15... Bf6 {[%clk 0:01:47.6]} 16. O-O-O {[%clk 0:02:09]}
16... d5 {[%clk 0:01:26.2]} 17. Bxf6 {[%clk 0:02:03.5]} 17... Qxf6 {[%clk
0:01:23.7]} 18. e5 {[%clk 0:02:03.3]} 18... Qd8 {[%clk 0:01:21.5]} 19. Kb2
{[%clk 0:01:48.9]} 19... Qa5 {[%clk 0:01:19.7]} 20. Nh4 {[%clk 0:01:36.4]} 20...
Nd4 {[%clk 0:00:50.8]} 21. Nf5 {[%clk 0:01:29.9]} 21... Nxf5 {[%clk 0:00:49.8]}
22. Qxf5 {[%clk 0:01:30.4]} 22... Rg6 {[%clk 0:00:49]} 23. Qh5 {[%clk 0:01:11]}
23... h6 {[%clk 0:00:42.6]} 24. Rhe1 {[%clk 0:01:07.2]} 24... Bc8 {[%clk
0:00:40.6]} 25. Qh4 {[%clk 0:00:58.3]} 25... Bg4 {[%clk 0:00:38.4]} 26. e6
{[%clk 0:00:53.4]} 26... Bxe6 {[%clk 0:00:17.4]} 27. Re5 {[%clk 0:00:48.3]}
27... Kd7 {[%clk 0:00:15.1]} 28. Rf1 {[%clk 0:00:43.8]} 28... Re8 {[%clk
0:00:11.5]} 29. Qf4 {[%clk 0:00:32.2]} 29... Qc7 {[%clk 0:00:09.5]} 30. Rfe1
{[%clk 0:00:30]} 30... Kc8 {[%clk 0:00:07.2]} 31. Qf2 {[%clk 0:00:28.6]} 31...
Qd6 {[%clk 0:00:04.3]} 32. c4 {[%clk 0:00:24.4]} 32... d4 {[%clk 0:00:03.9]} 33.
Nc2 {[%clk 0:00:22.2]} 33... Rg5 {[%clk 0:00:04]} 34. R5e4 {[%clk 0:00:20.5]}
34... Rd8 {[%clk 0:00:03.4]} 35. d3 {[%clk 0:00:20.6]} 35... Rf5 {[%clk
0:00:03]} 36. Qd2 {[%clk 0:00:20.1]} 36... a5 {[%clk 0:00:03.4]} 37. Qxa5 {[%clk
0:00:18.5]} 37... Qc7 {[%clk 0:00:04.1]} 38. Qxc7+ {[%clk 0:00:17.4]} 38... Kxc7
{[%clk 0:00:05]} 39. R1e2 {[%clk 0:00:17.8]} 39... Rf6 {[%clk 0:00:04.6]} 40.
Rh4 {[%clk 0:00:17.6]} 40... Bf5 {[%clk 0:00:04.9]} 41. Rd2 {[%clk 0:00:16.3]}
41... Re6 {[%clk 0:00:05.5]} 42. b4 {[%clk 0:00:14.7]} 42... cxb4 {[%clk
0:00:05.4]} 43. Nxd4 {[%clk 0:00:14.9]} 43... Rf6 {[%clk 0:00:04.8]} 44. Nxf5
{[%clk 0:00:14.7]} 44... Rxf5 {[%clk 0:00:05.7]} 45. Kb3 {[%clk 0:00:15]} 45...
c5 {[%clk 0:00:05.4]} 46. a3 {[%clk 0:00:14.7]} 46... bxa3 {[%clk 0:00:05.3]}
47. Kxa3 {[%clk 0:00:15.3]} 47... Rf6 {[%clk 0:00:06]} 48. Kb3 {[%clk
0:00:15.1]} 48... Rb6+ {[%clk 0:00:06.5]} 49. Kc3 {[%clk 0:00:15.4]} 49... Ra8
{[%clk 0:00:07.1]} 50. Rc2 {[%clk 0:00:15.1]} 50... Ra3+ {[%clk 0:00:07.1]} 51.
Kd2 {[%clk 0:00:15.6]} 51... Rd6 {[%clk 0:00:08]} 52. Rc3 {[%clk 0:00:14.2]}
52... Ra2+ {[%clk 0:00:08.6]} 53. Ke3 {[%clk 0:00:14]} 53... Re6+ {[%clk
0:00:08.8]} 54. Kf3 {[%clk 0:00:14]} 54... Rae2 {[%clk 0:00:08.2]} 55. Rf4
{[%clk 0:00:13.4]} 55... h5 {[%clk 0:00:07.9]} 56. Rf5 {[%clk 0:00:10.7]} 56...
R2e3+ {[%clk 0:00:06.7]} 57. Kf4 {[%clk 0:00:10.7]} 57... Kc6 {[%clk 0:00:07.3]}
58. Rxh5 {[%clk 0:00:10.7]} 58... Re1 {[%clk 0:00:07.9]} 59. h4 {[%clk
0:00:08.2]} 59... Rf1+ {[%clk 0:00:08.1]} 60. Kg4 {[%clk 0:00:08.8]} 60... f5+
{[%clk 0:00:08.2]} 61. Kh3 {[%clk 0:00:09.1]} 61... Re2 {[%clk 0:00:08.6]} 62.
g4 {[%clk 0:00:05.7]} 62... Rf3# {[%clk 0:00:07]} 0-1

[Event "Early-Titled-Tuesday-Blitz-May-28-2024"]
[Site "Chess.com"]
[Date "2024.05.28"]
[Round "6"]
[White "LeoLV10"]
[Black "the_chess_child"]
[Result "0-1"]
[WhiteElo "2574"]
[BlackElo "2891"]
[TimeControl "180+1"]
[EndTime "9:08:37 PDT"]
[Termination "the_chess_child won on time"]

1. e4 {[%clk 0:03:00.9]} 1... c5 {[%clk 0:02:59.6]} 2. Nf3 {[%clk 0:03:00.2]}
2... e6 {[%clk 0:02:58.8]} 3. d4 {[%clk 0:02:59.9]} 3... cxd4 {[%clk 0:02:59.7]}
4. Nxd4 {[%clk 0:03:00.8]} 4... Nf6 {[%clk 0:03:00]} 5. Nc3 {[%clk 0:03:01.1]}
5... Nc6 {[%clk 0:03:00.3]} 6. Nxc6 {[%clk 0:03:00.6]} 6... bxc6 {[%clk
0:03:01.2]} 7. e5 {[%clk 0:03:01.1]} 7... Nd5 {[%clk 0:03:01.3]} 8. Ne4 {[%clk
0:03:02]} 8... Qc7 {[%clk 0:03:01.6]} 9. f4 {[%clk 0:03:01.9]} 9... Rb8 {[%clk
0:03:02]} 10. Bd3 {[%clk 0:02:55.7]} 10... Qb6 {[%clk 0:02:58.9]} 11. c4 {[%clk
0:02:54]} 11... f5 {[%clk 0:02:28.6]} 12. exf6 {[%clk 0:02:50]} 12... Nxf6
{[%clk 0:02:28.3]} 13. Nxf6+ {[%clk 0:02:40.4]} 13... gxf6 {[%clk 0:02:29.2]}
14. Qh5+ {[%clk 0:02:40.4]} 14... Kd8 {[%clk 0:02:29.5]} 15. Qf3 {[%clk
0:02:08.2]} 15... Bb4+ {[%clk 0:02:28.4]} 16. Ke2 {[%clk 0:02:05]} 16... Ba6
{[%clk 0:02:27.1]} 17. Rd1 {[%clk 0:02:04.5]} 17... Bc5 {[%clk 0:02:10.6]} 18.
b3 {[%clk 0:02:02.1]} 18... Bd4 {[%clk 0:02:07.1]} 19. Rb1 {[%clk 0:02:00.4]}
19... e5 {[%clk 0:02:07]} 20. fxe5 {[%clk 0:01:55.6]} 20... fxe5 {[%clk
0:02:05.1]} 21. Ba3 {[%clk 0:01:48.7]} 21... Kc7 {[%clk 0:01:55.7]} 22. Qf6
{[%clk 0:01:48.2]} 22... Rbe8 {[%clk 0:01:09.4]} 23. Qd6+ {[%clk 0:01:38.9]}
23... Kc8 {[%clk 0:01:09]} 24. Bf5 {[%clk 0:01:35.9]} 24... Qc7 {[%clk
0:01:08.2]} 25. g4 {[%clk 0:01:32.1]} 25... Bb7 {[%clk 0:00:38.9]} 26. c5 {[%clk
0:00:58.1]} 26... Rhf8 {[%clk 0:00:31.4]} 27. b4 {[%clk 0:00:43.1]} 27... Ba6+
{[%clk 0:00:22.7]} 28. b5 {[%clk 0:00:21.4]} 28... Bxb5+ {[%clk 0:00:18.7]} 29.
Rxb5 {[%clk 0:00:21]} 29... Qxd6 {[%clk 0:00:16]} 30. cxd6 {[%clk 0:00:21.8]}
30... cxb5 {[%clk 0:00:16.4]} 31. Rc1+ {[%clk 0:00:21.7]} 31... Kb7 {[%clk
0:00:14.8]} 32. Rc7+ {[%clk 0:00:11.1]} 32... Kb6 {[%clk 0:00:13.6]} 33. Bxd7
{[%clk 0:00:11.6]} 33... Rf2+ {[%clk 0:00:13]} 34. Kd3 {[%clk 0:00:11.8]} 34...
Rf3+ {[%clk 0:00:11.9]} 35. Ke4 {[%clk 0:00:11.8]} 35... Ref8 {[%clk 0:00:09.1]}
36. Bc1 {[%clk 0:00:08.5]} 36... Rc3 {[%clk 0:00:06.2]} 37. Rxc3 {[%clk
0:00:07.3]} 37... Bxc3 {[%clk 0:00:07.1]} 38. Be3+ {[%clk 0:00:06.8]} 38... Kb7
{[%clk 0:00:07.6]} 39. Kd5 {[%clk 0:00:06.1]} 39... a6 {[%clk 0:00:07.6]} 40.
Bc6+ {[%clk 0:00:06.4]} 40... Kb8 {[%clk 0:00:07]} 41. Bb6 {[%clk 0:00:06.8]}
41... e4 {[%clk 0:00:05.8]} 42. Kxe4 {[%clk 0:00:06.6]} 42... Bf6 {[%clk
0:00:05.9]} 43. Kd5 {[%clk 0:00:06.3]} 43... Bd8 {[%clk 0:00:06]} 44. Bc5 {[%clk
0:00:06.4]} 44... Rf3 {[%clk 0:00:05.9]} 45. Ke6 {[%clk 0:00:05.7]} 45... Rd3
{[%clk 0:00:05]} 46. Kd7 {[%clk 0:00:05.8]} 46... Ba5 {[%clk 0:00:05.3]} 47. Bf2
{[%clk 0:00:04]} 47... Rd2 {[%clk 0:00:05.4]} 48. Bg3 {[%clk 0:00:04.2]} 48...
Rxa2 {[%clk 0:00:05]} 49. Ke7 {[%clk 0:00:04.6]} 49... Rd2 {[%clk 0:00:05.1]}
50. d7+ {[%clk 0:00:04.6]} 50... Ka7 {[%clk 0:00:05.4]} 51. Bd6 {[%clk
0:00:01.6]} 51... Rd1 {[%clk 0:00:03.3]} 52. Ke6 {[%clk 0:00:01.4]} 52... Bd8
{[%clk 0:00:03.2]} 53. Bc5+ {[%clk 0:00:01.8]} 53... Bb6 {[%clk 0:00:03]} 54.
Bxb6+ {[%clk 0:00:01]} 54... Kxb6 {[%clk 0:00:03.9]} 55. Bd5 {[%clk 0:00:01.9]}
55... Kc7 {[%clk 0:00:01.9]} 56. d8=Q+ {[%clk 0:00:02.2]} 56... Kxd8 {[%clk
0:00:02.2]} 57. Bb7 {[%clk 0:00:02.8]} 57... b4 {[%clk 0:00:02.5]} 58. Bxa6
{[%clk 0:00:02.4]} 58... b3 {[%clk 0:00:03]} 59. Be2 {[%clk 0:00:01.2]} 59... b2
{[%clk 0:00:03.9]} 60. Bxd1 {[%clk 0:00:01.3]} 60... b1=Q {[%clk 0:00:04.8]} 61.
Bf3 {[%clk 0:00:01.9]} 61... Qd3 {[%clk 0:00:05.1]} 62. Bc6 {[%clk 0:00:01]}
62... Qe3+ {[%clk 0:00:06]} 63. Kd6 {[%clk 0:00:01]} 63... Qf4+ {[%clk
0:00:05.8]} 64. Kd5 {[%clk 0:00:01]} 64... Qxh2 {[%clk 0:00:06.7]} 0-1